bitfinex-derivatives/quotes_BTCF0:USTF0_20251103
["timestamp","ask_amount","ask_price","bid_price","bid_amount"]
[1762195313899,0.52854093,107030.0,107020.0,0.00308339]
[1762195314195,0.52954093,107030.0,107020.0,0.00408339]
[1762195315897,0.39875617,107030.0,107020.0,0.03942339]
[1762195316093,0.39875617,107030.0,107020.0,0.06161339]
[1762195317097,0.49220337,107030.0,107020.0,0.15506939]
[1762195318499,0.49220347,107030.0,107020.0,0.15506939]
[1762195319391,0.36191617,107030.0,107020.0,0.28585415]
[1762195319590,0.36191617,107030.0,107020.0,0.15506939]
[1762195319791,0.36191617,107030.0,107020.0,0.28585415]
[1762195320003,0.36191617,107030.0,107020.0,0.15506939]
[1762195320898,0.00111617,107030.0,107020.0,0.15506939]
[1762195321208,0.00111617,107030.0,107020.0,0.51945415]
[1762195321394,0.00111617,107030.0,107020.0,0.88025415]
[1762195321791,0.39764,107050.0,107040.0,0.1509685]
[1762195321999,0.39764,107050.0,107040.0,0.4796085]
[1762195322604,0.03684,107050.0,107040.0,0.4796085]
[1762195322807,9.115e-05,107050.0,107040.0,0.97119326]
[1762195323305,0.00309115,107050.0,107040.0,1.20475326]
[1762195324404,0.00309115,107050.0,107040.0,0.64255326]
[1762195324597,0.49416105,107050.0,107040.0,0.1509686]
[1762195324798,0.36389115,107050.0,107040.0,0.4796086]
[1762195324999,0.00309115,107050.0,107040.0,0.4796086]
[1762195326799,0.09652095,107050.0,107040.0,0.4796086]
[1762195327098,0.49416095,107050.0,107040.0,0.4796086]
[1762195327993,0.49416095,107050.0,107040.0,0.05753]
[1762195328200,0.1302872,107030.0,107020.0,0.48266939]
[1762195328406,0.39764,107030.0,107020.0,0.48266939]
[1762195329405,0.38222,107030.0,107020.0,0.48266939]
[1762195330004,0.39964,107030.0,107020.0,0.38921339]
[1762195330202,0.39964,107030.0,107020.0,0.48266939]
[1762195330401,0.38122,107030.0,107020.0,0.48266939]
[1762195330598,0.3628,107030.0,107020.0,0.48266939]
[1762195330903,0.3628,107030.0,107020.0,0.61345415]
[1762195331108,0.3638,107030.0,107020.0,0.61345415]
[1762195331308,0.3638,107030.0,107020.0,0.84705415]
[1762195332505,0.3628,107030.0,107020.0,0.84705415]
[1762195333310,0.002,107030.0,107020.0,0.84705415]
[1762195333704,0.002,107030.0,107020.0,1.20785415]
[1762195333903,0.36089115,107050.0,107040.0,0.05753]
[1762195334206,0.36089115,107050.0,107040.0,0.61019326]
[1762195334408,0.37931115,107050.0,107040.0,0.61019326]
[1762195334801,9.115e-05,107050.0,107040.0,0.84375326]
[1762195335003,0.39764,107080.0,107070.0,0.1379323]
[1762195335199,0.39764,107080.0,107070.0,0.4663323]
[1762195335615,0.3608,107080.0,107070.0,0.59711706]
[1762195335809,0.4910289,107100.0,107080.0,0.1065836]
[1762195336005,0.4910289,107100.0,107090.0,0.373]
[1762195336205,0.49112011,107100.0,107090.0,0.373]
[1762195337004,0.39773121,107100.0,107090.0,0.4663949]
[1762195337205,0.49611731,107100.0,107090.0,0.4663949]
[1762195337600,0.40273121,107100.0,107090.0,0.4663949]
[1762195337912,0.36589121,107100.0,107090.0,0.4663949]
[1762195338111,0.36589121,107100.0,107090.0,1.19141966]
[1762195338112,0.00509121,107100.0,107090.0,1.19141966]
[1762195338311,0.4910092,107120.0,107110.0,0.04452]
[1762195338611,0.1302174,107110.0,107100.0,0.1510854]
[1762195338801,0.62180216,107110.0,107100.0,0.4795254]
[1762195339308,0.4910174,107110.0,107100.0,0.4795254]
[1762195340015,0.39764,107110.0,107100.0,0.4795254]
[1762195340814,0.4940174,107110.0,107100.0,0.4805254]
[1762195341016,0.4940174,107110.0,107100.0,0.4805262]
[1762195344308,0.4940174,107110.0,107100.0,0.4805261]
[1762195347010,0.62480216,107110.0,107100.0,0.03606]
[1762195347210,0.62480216,107110.0,107100.0,0.32888]
[1762195347412,0.62480216,107110.0,107100.0,0.36366]
[1762195347617,0.4940174,107110.0,107100.0,0.4793562]
[1762195347817,0.62480216,107110.0,107100.0,0.4793562]
[1762195348320,0.4940174,107110.0,107100.0,0.4793562]
[1762195351820,0.40064,107110.0,107100.0,0.4793562]
[1762195352020,0.4940174,107110.0,107100.0,0.4793562]
[1762195352611,0.4940174,107110.0,107100.0,0.4793561]
[1762195352922,0.4940174,107110.0,107100.0,0.38597]
[1762195353517,0.4940174,107110.0,107100.0,0.4793561]
[1762195354927,0.4940174,107110.0,107100.0,0.38597]
[1762195355524,0.4940174,107110.0,107100.0,0.4793562]
[1762195356825,0.68595932,107110.0,107100.0,0.001]
[1762195357125,1.01327932,107110.0,107090.0,0.34018]
[1762195357329,0.1302349,107090.0,107080.0,0.3859]
[1762195357525,0.4910349,107090.0,107080.0,0.3859]
[1762195357727,0.4910349,107090.0,107080.0,0.4793036]
[1762195358227,0.4910349,107090.0,107080.0,0.3859]
[1762195358625,0.4910349,107090.0,107080.0,0.3869]
[1762195358927,0.50050611,107090.0,107080.0,0.4803036]
[1762195359327,0.4910349,107090.0,107080.0,0.4803036]
[1762195360123,0.3608,107090.0,107080.0,0.4803036]
[1762195360930,0.37922,107090.0,107080.0,0.4803036]
[1762195361232,0.39764,107090.0,107080.0,0.4803036]
[1762195362526,0.4910349,107090.0,107080.0,0.4803036]
[1762195363630,0.39764,107090.0,107080.0,0.4803036]
[1762195363828,0.3608,107090.0,107080.0,0.4803036]
[1762195364032,0.39764,107100.0,107090.0,0.1517349]
[1762195364228,0.4910262,107100.0,107090.0,0.1517349]
[1762195364938,0.39764,107100.0,107090.0,0.1517349]
[1762195365237,0.4920261,107100.0,107090.0,0.1517349]
[1762195365432,0.4920261,107100.0,107090.0,0.05834]
[1762195365638,0.4920261,107100.0,107090.0,0.4787749]
[1762195366239,0.4910261,107100.0,107090.0,0.4797749]
[1762195368235,0.4910261,107100.0,107090.0,0.38638]
[1762195368540,0.51342719,107100.0,107090.0,0.4797749]
[1762195368749,0.51342719,107100.0,107090.0,0.05934]
[1762195369037,0.51342719,107100.0,107090.0,0.4796149]
[1762195369237,0.03684,107080.0,107060.0,0.3737]
[1762195369536,0.03684,107080.0,107060.0,0.05695]
[1762195369537,0.68299432,107070.0,107060.0,0.05695]
[1762195369841,0.4910524,107070.0,107060.0,0.05695]
[1762195370932,0.68299432,107070.0,107060.0,0.05995]
[1762195371333,0.68299432,107070.0,107060.0,0.05695]
[1762195371530,0.03684,107060.0,107050.0,0.3931]
[1762195371734,0.39764,107060.0,107050.0,0.3931]
[1762195371934,0.39764,107060.0,107050.0,0.4865276]
[1762195372535,0.39864,107060.0,107050.0,0.4905276]
[1762195373245,0.39864,107060.0,107050.0,0.51009828]
[1762195373550,0.38022,107060.0,107050.0,0.51009828]
[1762195373736,0.3608,107070.0,107060.0,0.137469]
[1762195373945,0.02485051,107100.0,107060.0,0.137469]
[1762195373946,0.39764,107090.0,107080.0,0.1374515]
[1762195374151,0.39764,107090.0,107080.0,0.4650515]
[1762195374459,0.39764,107090.0,107080.0,0.48462208]
[1762195375245,0.3608,107100.0,107090.0,0.1153427]
[1762195375451,0.39764,107100.0,107090.0,0.1374427]
[1762195376345,0.39764,107100.0,107090.0,0.15701328]
[1762195377258,0.4910239,107100.0,107090.0,0.15801328]
[1762195382361,0.4910239,107100.0,107090.0,0.07852058]
[1762195382757,0.4910239,107100.0,107090.0,0.17191328]
[1762195384762,0.491024,107100.0,107090.0,0.17191328]
[1762195384963,0.39764,107100.0,107090.0,0.17191328]
[1762195385664,0.03684,107100.0,107090.0,0.17191328]
[1762195386258,0.39764,107110.0,107100.0,0.151334]
[1762195386462,0.39764,107110.0,107100.0,0.478334]
[1762195387164,0.4910153,107110.0,107100.0,0.478334]
[1762195387462,0.4920153,107110.0,107100.0,0.49790458]
[1762195388058,0.001,107110.0,107100.0,1.0506465]
[1762195388860,0.001,107110.0,107100.0,0.49790458]
[1762195388861,0.01942,107110.0,107100.0,0.49790458]
[1762195389056,0.01942,107110.0,107100.0,0.85870458]
[1762195389460,0.01842,107110.0,107100.0,0.85970458]
[1762195390466,0.39764,107120.0,107110.0,0.1513253]
[1762195390666,0.4910066,107120.0,107110.0,0.1513253]
[1762195390861,0.4939982,107130.0,107120.0,0.1513166]
[1762195391064,0.4939979,107130.0,107120.0,0.4781166]
[1762195391568,0.4939979,107130.0,107120.0,0.49768718]
[1762195391767,0.40064,107130.0,107120.0,0.49768718]
[1762195392167,0.4939979,107130.0,107120.0,0.49768718]
[1762195393063,0.4959979,107130.0,107120.0,0.49868718]
[1762195393657,0.69611982,107130.0,107120.0,0.34729058]
[1762195394264,0.68793982,107130.0,107120.0,0.36924058]
[1762195394465,0.69611982,107130.0,107120.0,0.02057058]
[1762195394960,0.69611982,107130.0,107120.0,0.00311866]
[1762195394961,1.3300166,107130.0,107120.0,0.00311866]
[1762195395165,0.1239839,107100.0,107090.0,0.4794764]
[1762195395359,0.1239839,107100.0,107090.0,0.38609]
[1762195395360,0.4847839,107100.0,107090.0,0.38609]
[1762195395560,0.4847839,107100.0,107090.0,0.4794826]
[1762195395967,0.67672582,107100.0,107090.0,0.38609]
[1762195396166,0.67672582,107100.0,107090.0,0.36346]
[1762195396356,0.68594575,107100.0,107090.0,0.05881]
[1762195396565,0.1239926,107090.0,107080.0,0.0139]
[1762195396763,0.67673452,107090.0,107080.0,0.0139]
[1762195397062,0.67673452,107090.0,107080.0,0.05881]
[1762195397566,0.4847926,107090.0,107080.0,0.05881]
[1762195398070,0.4847926,107090.0,107080.0,0.1522114]
[1762195398564,0.4847926,107090.0,107080.0,0.05881]
[1762195399063,0.3914,107090.0,107080.0,0.1522114]
[1762195399271,0.4847927,107090.0,107080.0,0.05881]
[1762195399462,0.4847927,107090.0,107080.0,0.1522114]
[1762195400464,0.0934014,107080.0,107070.0,0.4343144]
[1762195400658,0.4848014,107080.0,107070.0,0.4792244]
[1762195402268,0.4858014,107080.0,107070.0,0.4802244]
[1762195403368,1.23818332,107080.0,107070.0,0.001]
[1762195403562,1.00470332,107080.0,107070.0,0.001]
[1762195403762,1.23818332,107080.0,107070.0,0.001]
[1762195404171,1.00470332,107080.0,107070.0,0.001]
[1762195405964,1.23818332,107080.0,107070.0,0.001]
[1762195406861,1.23830332,107080.0,107070.0,0.001]
[1762195407762,0.03739,107060.0,107050.0,0.00791]
[1762195408068,1.27797192,107060.0,107050.0,0.00791]
[1762195408267,1.51149192,107060.0,107050.0,0.00791]
[1762195408968,1.51249192,107060.0,107050.0,0.01191]
[1762195409364,1.27797192,107060.0,107050.0,0.00791]
[1762195409562,1.28097192,107060.0,107050.0,0.00891]
[1762195410466,1.2200514,107060.0,107050.0,0.00891]
[1762195413461,1.4535714,107060.0,107050.0,0.00891]
[1762195413860,1.2200514,107060.0,107050.0,0.00891]
[1762195416163,1.3134703,107060.0,107050.0,0.00891]
[1762195420267,1.3134703,107060.0,107020.0,0.11028669]
[1762195420268,0.106005,107030.0,107020.0,0.06189339]
[1762195420469,0.9586264,107030.0,107020.0,0.06189339]
[1762195420673,0.9586264,107030.0,107020.0,0.00308339]
[1762195421175,0.96776259,107030.0,107020.0,0.00308339]
[1762195421565,0.96776259,107030.0,107020.0,0.00408339]
[1762195421767,0.96876259,107030.0,107020.0,0.00408339]
[1762195422566,0.1060138,107020.0,107010.0,0.01317895]
[1762195422775,0.9310352,107020.0,107010.0,7.895e-05]
[1762195422980,0.9310352,107020.0,106980.0,0.00308454]
[1762195422981,0.01256,106990.0,106980.0,0.00308454]
[1762195423272,1.1921014,106990.0,106980.0,0.06124454]
[1762195423477,0.8651814,106990.0,106980.0,0.00308454]
[1762195423666,1.06164,106990.0,106980.0,0.13221324]
[1762195423977,0.72168478,106990.0,106980.0,0.15473324]
[1762195424277,0.73424478,106990.0,106980.0,0.15473324]
[1762195425276,0.73524478,106990.0,106980.0,0.15473324]
[1762195426364,1.19370618,106990.0,106980.0,0.00308454]
[1762195426571,1.19370618,106990.0,106980.0,0.09657314]
[1762195426777,1.06264478,106990.0,106980.0,0.14167314]
[1762195426966,0.73524478,106990.0,106980.0,0.04818454]
[1762195427166,0.86626618,106990.0,106980.0,0.00308454]
[1762195428669,0.86726618,106990.0,106980.0,0.00308454]
[1762195429575,1.19574618,106990.0,106980.0,0.06079454]
[1762195429776,0.86726618,106990.0,106980.0,0.15428334]
[1762195429969,0.86726618,106990.0,106980.0,0.06079454]
[1762195430173,0.86726618,106990.0,106980.0,0.15428334]
[1762195430670,0.73624478,106990.0,106980.0,0.15428334]
[1762195431376,2.23624478,106990.0,106980.0,0.15428334]
[1762195433173,2.32972488,106990.0,106980.0,0.15428334]
[1762195433777,2.46074628,106990.0,106980.0,0.15428334]
[1762195434177,2.22368478,106990.0,106980.0,0.48268344]
[1762195435085,2.31716468,106990.0,106980.0,0.43758344]
[1762195435280,2.31716468,106990.0,106980.0,0.00308454]
[1762195435281,2.44818608,106990.0,106980.0,0.00308454]
[1762195435575,0.0997774,106970.0,106960.0,0.03523]
[1762195435778,0.5978788,106970.0,106960.0,0.05771]
[1762195436175,0.8276574,106970.0,106960.0,0.1512161]
[1762195437379,0.73416,106970.0,106960.0,0.1512161]
[1762195437592,0.73516,106970.0,106960.0,0.1512161]
[1762195437781,0.8661814,106970.0,106960.0,0.1512161]
[1762195438173,0.9596788,106970.0,106960.0,0.1512161]
[1762195438384,0.8286574,106970.0,106960.0,0.1512161]
[1762195438876,0.8286574,106970.0,106960.0,0.05771]
[1762195439278,0.9596788,106970.0,106960.0,0.1512162]
[1762195439585,0.9596788,106970.0,106950.0,0.1517111]
[1762195439586,0.01256,106960.0,106950.0,0.1517111]
[1762195439779,0.37336,106960.0,106950.0,0.1517111]
[1762195440373,0.01256,106950.0,106940.0,0.36670076]
[1762195440683,0.37336,106950.0,106940.0,0.48269956]
[1762195440984,0.3608,106950.0,106940.0,0.48269956]
[1762195441489,0.37436,106960.0,106950.0,0.1386149]
[1762195441778,0.3608,106960.0,106950.0,0.1386149]
[1762195441985,0.37344478,106970.0,106960.0,0.1512161]
[1762195442684,0.37344478,106970.0,106960.0,0.4795361]
[1762195443780,0.37444478,106970.0,106960.0,0.4795361]
[1762195446181,0.46794188,106970.0,106960.0,0.4795361]
[1762195446688,0.59896328,106970.0,106960.0,0.05771]
[1762195447782,0.92700328,106970.0,106960.0,0.03523]
[1762195448184,0.1060658,106960.0,106950.0,0.05771]
[1762195448386,0.5978872,106960.0,106950.0,0.05771]
[1762195448687,0.5978872,106960.0,106940.0,0.48250146]
[1762195448688,0.1060747,106950.0,106940.0,0.48250146]
[1762195448900,0.37336,106950.0,106940.0,0.48250146]
[1762195449288,0.4605947,106950.0,106940.0,0.48250146]
[1762195449487,0.4668747,106950.0,106940.0,0.48250146]
[1762195450187,0.4678748,106950.0,106940.0,0.48250146]
[1762195450683,0.4678748,106950.0,106940.0,0.38898076]
[1762195450890,0.5988962,106950.0,106940.0,0.48250416]
[1762195451285,0.4678748,106950.0,106940.0,0.48250416]
[1762195451495,0.3618,106950.0,106940.0,0.48250416]
[1762195451690,0.001,106950.0,106940.0,0.48250416]
[1762195451984,0.3618,106950.0,106940.0,0.48250416]
[1762195452185,0.4553146,106950.0,106940.0,0.48250416]
[1762195452395,0.3618,106950.0,106940.0,0.48250416]
[1762195452691,0.36808,106950.0,106940.0,0.48250416]
[1762195453186,0.4678745,106950.0,106940.0,0.15442416]
[1762195453387,0.4678745,106950.0,106940.0,0.48242416]
[1762195453388,0.5988959,106950.0,106940.0,0.48242416]
[1762195453891,0.4678745,106950.0,106940.0,0.48242416]
[1762195454089,0.37436,106950.0,106940.0,0.48242416]
[1762195454391,0.3618,106950.0,106940.0,0.48242416]
[1762195454691,0.36808,106950.0,106940.0,0.48242416]
[1762195454992,0.37436,106950.0,106940.0,0.48242416]
[1762195455291,0.5988962,106950.0,106940.0,0.38887076]
[1762195455479,0.5988962,106950.0,106940.0,0.48239426]
[1762195455683,0.4678748,106950.0,106940.0,0.48239426]
[1762195456595,0.37436,106950.0,106940.0,0.48239426]
[1762195457389,0.4678748,106950.0,106940.0,0.38887076]
[1762195458187,0.5988962,106950.0,106940.0,0.48267426]
[1762195458495,0.5988962,106950.0,106940.0,0.06083076]
[1762195458687,0.5988962,106950.0,106940.0,0.38911076]
[1762195458887,0.5988962,106950.0,106940.0,0.06083076]
[1762195459095,0.5988962,106950.0,106940.0,0.38911076]
[1762195459284,0.59897365,106950.0,106940.0,0.38907076]
[1762195459484,0.59897365,106950.0,106940.0,0.15435426]
[1762195459685,0.59897365,106950.0,106940.0,0.48259426]
[1762195460100,0.46795225,106950.0,106940.0,0.48259426]
[1762195461593,0.46795225,106950.0,106940.0,0.38907076]
[1762195461796,0.59897365,106950.0,106940.0,0.38907076]
[1762195461990,0.59897365,106950.0,106940.0,0.01580076]
[1762195462199,0.59897365,106950.0,106940.0,0.33143076]
[1762195462387,0.59897365,106950.0,106940.0,0.00319076]
[1762195462589,0.59897365,106950.0,106940.0,0.33147076]
[1762195463194,0.45539225,106950.0,106940.0,0.48320436]
[1762195463392,0.37443745,106950.0,106940.0,0.48320436]
[1762195463791,0.38373914,106950.0,106940.0,0.48320436]
[1762195464699,0.37443745,106950.0,106940.0,0.48320436]
[1762195467897,0.36815745,106950.0,106940.0,0.48320436]
[1762195468296,0.37443745,106950.0,106940.0,0.48320436]
[1762195468601,0.37443745,106950.0,106940.0,0.48292436]
[1762195468806,0.37443745,106950.0,106940.0,0.15492436]
[1762195469303,0.37443745,106950.0,106940.0,0.48284436]
[1762195469605,0.50545885,106950.0,106940.0,0.48284436]
[1762195470005,0.62134328,106950.0,106940.0,0.00319076]
[1762195470201,0.1061008,106920.0,106910.0,0.01261]
[1762195470402,0.1061096,106910.0,106900.0,0.15350235]
[1762195470698,0.4669096,106910.0,106900.0,0.48162235]
[1762195470904,0.4669096,106910.0,106900.0,0.15350235]
[1762195471204,0.37344152,106910.0,106900.0,0.48162235]
[1762195472198,0.37444152,106910.0,106900.0,0.15350235]
[1762195472398,0.37444152,106910.0,106900.0,0.48158235]
[1762195473100,0.37444152,106910.0,106900.0,0.15350235]
[1762195473301,0.37444152,106910.0,106900.0,0.48154235]
[1762195473605,0.3608,106930.0,106900.0,1.07618235]
[1762195473803,0.37336,106930.0,106920.0,0.1364709]
[1762195474002,0.36708,106930.0,106920.0,0.4644309]
[1762195474301,0.37336,106940.0,106930.0,0.1364622]
[1762195474605,0.37344484,106940.0,106930.0,0.1364622]
[1762195475506,0.37444484,106940.0,106930.0,0.1364622]
[1762195477406,0.37444484,106940.0,106930.0,0.1503922]
[1762195478096,0.00108484,106940.0,106930.0,0.5111922]
[1762195478303,0.00108484,106940.0,106930.0,1.00464769]
[1762195478609,0.00108484,106940.0,106930.0,0.81199459]
[1762195478804,0.4668693,106960.0,106950.0,0.1503747]
[1762195479006,0.4668693,106960.0,106950.0,0.4783347]
[1762195479505,0.4668693,106960.0,106950.0,0.38482]
[1762195479713,0.6595224,106960.0,106950.0,0.05686]
[1762195480006,0.4668693,106960.0,106950.0,0.4782946]
[1762195480909,0.4668693,106960.0,106950.0,0.1503746]
[1762195481100,0.4688693,106960.0,106950.0,0.1503746]
[1762195481301,0.4688693,106960.0,106950.0,0.4782546]
[1762195481503,0.4668693,106960.0,106950.0,0.4782547]
[1762195481703,0.4678693,106960.0,106950.0,0.4782547]
[1762195481908,0.4678693,106960.0,106950.0,0.1503747]
[1762195482200,0.4678693,106960.0,106950.0,0.05686]
[1762195482613,0.4678693,106960.0,106950.0,0.38466]
[1762195482808,0.6605224,106960.0,106950.0,0.38466]
[1762195484407,0.0935148,106950.0,106940.0,0.01393]
[1762195484602,0.6595279,106950.0,106940.0,0.38604]
[1762195484799,0.0998122,106930.0,106920.0,0.19741259]
[1762195485010,0.4668922,106930.0,106920.0,0.54658259]
[1762195485909,0.4668922,106930.0,106920.0,0.4795802]
[1762195486104,1.0203453,106930.0,106920.0,0.38604]
[1762195486707,0.8276922,106930.0,106920.0,0.4795809]
[1762195487206,0.7226,106930.0,106920.0,0.4825809]
[1762195487406,0.3618,106930.0,106920.0,0.4825809]
[1762195487611,0.36808,106930.0,106920.0,0.4825809]
[1762195488116,0.4678923,106930.0,106920.0,0.4825809]
[1762195488501,0.8286923,106930.0,106920.0,0.06128]
[1762195488707,0.8286923,106930.0,106920.0,0.38896]
[1762195489712,0.8286923,106930.0,106920.0,0.482501]
[1762195489713,0.73516,106930.0,106920.0,0.482501]
[1762195489908,0.3618,106930.0,106920.0,0.482501]
[1762195490210,0.001,106930.0,106920.0,0.78330339]
[1762195490417,0.001,106930.0,106920.0,0.54950339]
[1762195490612,0.3618,106930.0,106920.0,0.54950339]
[1762195490914,0.4678923,106930.0,106920.0,0.54950339]
[1762195491109,0.4678923,106930.0,106920.0,0.22182339]
[1762195491415,0.4678923,106930.0,106920.0,0.54946339]
[1762195492818,0.37436,106930.0,106920.0,0.54946339]
[1762195493314,0.3618,106930.0,106920.0,0.54946339]
[1762195494202,0.001,106930.0,106920.0,0.54946339]
[1762195495123,0.36808,106950.0,106940.0,0.1378755]
[1762195495310,0.37536,106950.0,106940.0,0.51592481]
[1762195496112,0.468877,106950.0,106940.0,0.41592481]
[1762195496313,0.469877,106950.0,106940.0,0.46127481]
[1762195496518,0.37636,106950.0,106940.0,0.46127481]
[1762195497108,0.36908,106950.0,106940.0,0.46127481]
[1762195497308,0.3917,106950.0,106940.0,0.46127481]
[1762195498522,0.4852167,106950.0,106940.0,0.46127481]
[1762195500511,0.4852167,106950.0,106940.0,0.42339931]
[1762195500915,1.0052698,106950.0,106940.0,0.05136931]
[1762195501115,1.0052698,106950.0,106940.0,0.001]
[1762195503915,0.1519754,106940.0,106930.0,0.05036931]
[1762195504120,0.1519754,106940.0,106920.0,0.14391221]
[1762195504121,0.1380342,106930.0,106920.0,0.14391221]
[1762195504316,0.6914873,106930.0,106920.0,0.14391221]
[1762195504516,0.4988342,106930.0,106920.0,0.18826221]
[1762195504824,0.4988341,106930.0,106920.0,0.1378929]
[1762195505024,0.4988341,106930.0,106920.0,0.18830479]
[1762195505528,0.4998341,106930.0,106920.0,0.19130479]
[1762195506322,0.8606341,106930.0,106920.0,0.19130479]
[1762195506519,0.8606341,106930.0,106920.0,0.09776189]
[1762195507021,0.8606341,106930.0,106920.0,0.19130479]
[1762195507521,1.0532872,106930.0,106920.0,0.05341189]
[1762195508520,1.0532872,106930.0,106920.0,0.003]
[1762195508924,1.0532872,106930.0,106920.0,0.02594]
[1762195509122,1.1879141,106930.0,106920.0,0.1543229]
[1762195509325,1.1976241,106930.0,106920.0,0.1543229]
[1762195509522,0.8703441,106930.0,106920.0,0.1543231]
[1762195509716,1.09438,106930.0,106920.0,0.20473499]
[1762195509921,1.1021,106930.0,106920.0,0.20473499]
[1762195510221,0.77482,106930.0,106920.0,0.20473499]
[1762195511128,0.9674731,106930.0,106920.0,0.04735]
[1762195511428,0.9674731,106930.0,106920.0,0.1194843]
[1762195512228,0.9674731,106930.0,106920.0,0.1408943]
[1762195512533,0.9674731,106930.0,106920.0,0.19130619]
[1762195512822,0.74448,106930.0,106920.0,0.20473619]
[1762195513125,0.001,106930.0,106920.0,0.54872338]
[1762195513323,0.4063,106930.0,106920.0,0.54872338]
[1762195514921,0.38368,106930.0,106920.0,0.54872338]
[1762195515121,0.02288,106930.0,106920.0,0.54872338]
[1762195515426,0.38368,106930.0,106920.0,0.54872338]
[1762195516132,0.3618,106930.0,106920.0,0.54872338]
[1762195516330,0.001,106930.0,106920.0,0.97517648]
[1762195516729,0.001,106930.0,106920.0,1.14332338]
[1762195516927,0.3608,106940.0,106930.0,0.1513463]
[1762195517526,0.4975575,106940.0,106930.0,0.1513463]
[1762195517828,0.40403,106940.0,106930.0,0.1513463]
[1762195518325,0.4985575,106940.0,106930.0,0.1533463]
[1762195519227,0.4985575,106940.0,106930.0,0.05981]
[1762195519429,0.7047606,106940.0,106930.0,0.07357475]
[1762195519937,0.7047606,106940.0,106930.0,0.05240475]
[1762195521932,0.1495762,106930.0,106920.0,0.05040475]
[1762195522230,0.1454949,106920.0,106910.0,0.05040475]
[1762195522437,0.698948,106920.0,106910.0,0.05040475]
[1762195522736,0.1503337,106910.0,106900.0,0.04739685]
[1762195522922,0.5111337,106910.0,106900.0,0.20811833]
[1762195523127,0.5111337,106910.0,106900.0,0.14095925]
[1762195523636,0.41758,106910.0,106900.0,0.15445925]
[1762195523825,0.40403,106910.0,106900.0,0.15445925]
[1762195524129,0.40503,106910.0,106900.0,0.15645925]
[1762195524534,0.4985837,106910.0,106900.0,0.15645925]
[1762195524936,0.40503,106910.0,106900.0,0.15645925]
[1762195525736,0.4985837,106910.0,106900.0,0.15645935]
[1762195525937,0.40503,106910.0,106900.0,0.15645935]
[1762195526230,0.4985839,106910.0,106900.0,0.15645935]
[1762195526436,0.40503,106910.0,106900.0,0.15645935]
[1762195527024,0.4985839,106910.0,106900.0,0.15645935]
[1762195527334,0.5121339,106910.0,106900.0,0.06289685]
[1762195527526,0.5121339,106910.0,106900.0,0.04939685]
[1762195527726,0.704787,106910.0,106900.0,0.00508685]
[1762195528035,0.1514901,106880.0,106870.0,0.17178197]
[1762195528230,0.1514901,106880.0,106860.0,0.18733868]
[1762195528231,0.1386888,106870.0,106860.0,0.18733868]
[1762195528432,0.7056919,106870.0,106860.0,0.11400663]
[1762195528634,0.41945,106870.0,106860.0,0.09723262]
[1762195528937,0.41945,106870.0,106860.0,0.14044515]
[1762195529146,0.41945,106870.0,106860.0,0.19078493]
[1762195529331,0.5130388,106870.0,106860.0,0.09718733]
[1762195529638,0.41945,106870.0,106860.0,0.19078493]
[1762195529837,0.5130389,106870.0,106860.0,0.19078493]
[1762195530036,0.4059,106870.0,106860.0,0.19078493]
[1762195530331,0.63195187,106870.0,106860.0,0.09718733]
[1762195530636,0.54792855,106870.0,106860.0,0.19078493]
[1762195531031,0.51005448,106870.0,106860.0,0.09718733]
[1762195531229,0.64151745,106870.0,106860.0,0.00317755]
[1762195531429,0.74401448,106870.0,106860.0,0.00317755]
[1762195531739,0.54792855,106870.0,106860.0,0.119119]
[1762195531936,0.54792855,106870.0,106860.0,0.141739]
[1762195531937,0.53836297,106870.0,106860.0,0.141739]
[1762195532137,0.4069,106870.0,106860.0,0.141739]
[1762195532336,0.73378,106870.0,106860.0,0.141739]
[1762195532536,0.02425,106870.0,106860.0,0.19207878]
[1762195533026,0.0461,106870.0,106860.0,0.19207878]
[1762195533232,0.4069,106870.0,106860.0,0.19207878]
[1762195533430,0.0461,106870.0,106860.0,0.19207878]
[1762195533637,0.4069,106870.0,106860.0,0.19207878]
[1762195534036,0.5004888,106870.0,106860.0,0.0481414]
[1762195534242,0.63195177,106870.0,106860.0,0.141739]
[1762195534427,0.3618,106870.0,106860.0,0.141739]
[1762195534626,0.38505,106870.0,106860.0,0.141739]
[1762195534836,0.4069,106870.0,106860.0,0.141739]
[1762195535151,0.3618,106870.0,106860.0,0.141739]
[1762195535331,0.001,106870.0,106860.0,0.19207878]
[1762195535531,0.001,106870.0,106860.0,0.32354175]
[1762195535933,0.001,106870.0,106860.0,0.68434175]
[1762195536134,0.4059,106890.0,106880.0,0.1372488]
[1762195536640,0.0451,106890.0,106880.0,0.13854265]
[1762195536840,0.4059,106890.0,106880.0,0.27000562]
[1762195537028,0.3608,106890.0,106880.0,0.32020349]
[1762195537234,0.38405,106890.0,106880.0,0.27000562]
[1762195537437,0.38505,106890.0,106880.0,0.32020349]
[1762195537636,0.3618,106890.0,106880.0,0.32020349]
[1762195537832,0.3618,106890.0,106880.0,0.27000562]
[1762195538028,0.001,106890.0,106880.0,0.68100349]
[1762195538737,0.001,106890.0,106880.0,0.32020349]
[1762195538945,0.0451,106900.0,106890.0,0.1372401]
[1762195539135,0.0451,106900.0,106890.0,0.64585243]
[1762195539336,0.4059,106900.0,106890.0,0.4642001]
[1762195539643,0.4059,106900.0,106890.0,0.46549345]
[1762195540141,0.51298297,106900.0,106890.0,0.00129385]
[1762195540334,0.87378297,106900.0,106890.0,0.00129385]
[1762195540830,0.41536,106900.0,106890.0,0.04496385]
[1762195541228,0.54682297,106900.0,106890.0,0.00129385]
[1762195542046,0.64038327,106900.0,106890.0,0.00129385]
[1762195544541,0.96762327,106900.0,106890.0,0.00129385]
[1762195546640,0.96762327,106900.0,106890.0,0.04452385]
[1762195547341,0.96762327,106900.0,106890.0,0.00129385]
[1762195550739,0.96762327,106900.0,106890.0,0.13952395]
[1762195550944,0.64038327,106900.0,106890.0,0.13952395]
[1762195551442,0.64038327,106900.0,106890.0,0.02377385]
[1762195553149,0.64038327,106900.0,106890.0,0.00129385]
[1762195554248,0.5089203,106900.0,106890.0,0.04595385]
[1762195554543,0.64038327,106900.0,106890.0,0.00129385]
[1762195555951,0.5089203,106900.0,106890.0,0.15348395]
[1762195556544,0.3618,106900.0,106890.0,0.20367331]
[1762195556750,0.001,106900.0,106890.0,0.66193628]
[1762195556951,0.001,106900.0,106890.0,0.92919981]
[1762195557154,0.001,106900.0,106890.0,0.69531981]
[1762195557543,0.001,106900.0,106890.0,0.61174692]
[1762195558139,0.38226,106920.0,106910.0,0.05862]
[1762195558340,0.4979528,106920.0,106910.0,0.5292902]
[1762195558750,0.40441,106920.0,106910.0,0.53058405]
[1762195559548,0.40541,106920.0,106910.0,0.53058405]